fUST/lending_fUST_20241230
["ID","MTS","AMOUNT","RATE_DAILY","PERIOD"]
[347147642,1735527044497,-151.0,0.00019999,2]
[347147643,1735527044506,-154.548404,0.00019999,2]
[347147644,1735527044515,-267.428163,0.00019999,2]
[347147645,1735527044524,-151.0,0.00019999,2]
[347147646,1735527044533,-880.598155,0.00019999,2]
[347147647,1735527044546,-880.598155,0.00019999,2]
[347147648,1735527044556,-267.428163,0.00019999,2]
[347147649,1735527044565,-880.598155,0.00019999,2]
[347147650,1735527044574,-880.598155,0.00019999,2]
[347147651,1735527044583,-1493.946736,0.00019999,2]
[347147652,1735527044593,-1493.946736,0.00019999,2]
[347147653,1735527044602,-440.009189,0.00019999,2]
[347147654,1735527044610,-440.009189,0.00019999,2]
[347147655,1735527044620,-155.079864,0.00019999,2]
[347147656,1735527044629,-513.488563,0.00019999,2]
[347147657,1735527044638,-513.488563,0.00019999,2]
[347147658,1735527044647,-1477.169933,0.00019999,2]
[347147659,1735527044656,-1477.169933,0.00019999,2]
[347147660,1735527044665,-1623.82,0.00019999,2]
[347147661,1735527044674,-1909.898705,0.00019999,2]
[347147662,1735527044684,-1909.898705,0.00019999,2]
[347147663,1735527044693,-151.0,0.00019999,2]
[347147664,1735527044702,-151.0,0.00019999,2]
[347147665,1735527044711,-500.0,0.00019999,2]
[347147666,1735527044721,-12886.68891962,0.0002,2]
[347147667,1735527044730,-237712.60341625,0.0002,2]
[347147668,1735527044739,-518582.28072668,0.0002,4]
[347147669,1735527044829,-6460.09950869,0.0002,4]
[347147670,1735527044870,-203.88250269,0.00016352,2]
[347147671,1735527044880,-500.0,0.00016999,2]
[347147672,1735527044889,-500.0,0.00017273,2]
[347147673,1735527044898,-500.0,0.00017547,2]
[347147674,1735527044908,-1304.40492759,0.0002,4]
[347147675,1735527044919,-493.28256153,0.0002,4]
[347147676,1735527044990,-500.0,0.00014736,2]
[347147677,1735527045000,-4380.00310114,0.00015485,2]
[347147678,1735527045066,-4552.78206336,0.00015485,2]
[347147679,1735527045075,-917.14512407,0.0002,4]
[347147687,1735527046173,-500.0,0.00016177,2]
[347147688,1735527046183,-500.0,0.00016451,2]
[347147689,1735527046192,-74456.33007001,0.0002,4]
[347147690,1735527046203,-1499.6825568,0.0002,4]
[347147691,1735527072899,668.65863919,0.00025,120]
[347147694,1735527565557,160.9419394,0.0002127,120]
[347148604,1735527661651,1883.03610376,0.00025,120]
[347149065,1735527690656,10000.0,0.00025,120]
[347149209,1735527701170,10000.0,0.00025,120]
[347149386,1735527714208,1639.9,0.00025,120]
[347149524,1735527722867,7677.42155365,0.00012941,2]
[347149710,1735527737840,2046.95323082,0.00012941,2]
[347150508,1735527804344,7677.42155365,0.00012941,2]
[347150515,1735527805194,198.0,0.00025,120]
[347150693,1735527819959,1281.02500333,0.0002127,60]
[347153347,1735528141479,-206.8069445,0.00013236,2]
[347153349,1735528141509,-155.61194621,0.00013506,2]
[347153351,1735528141538,-500.0,0.00013603,2]
[347153352,1735528141566,-472.24388827,0.00013603,2]
[347153354,1735528141601,-27.75611173,0.00013603,2]
[347153355,1735528141631,-500.0,0.00013603,2]
[347153356,1735528141660,-500.0,0.00013604,2]
[347153357,1735528141685,-306.90666725,0.00013604,2]
[347153358,1735528141716,-90.2090765,0.00013604,2]
[347153359,1735528141744,-112.44594389,0.00013604,2]
[347153610,1735528205931,24900.0,0.00012606,2]
[347153911,1735528238326,-1300.0,0.00013467,2]
[347153913,1735528238336,-500.0,0.00013603,2]
[347153915,1735528238345,-500.0,0.00013603,2]
[347153917,1735528238354,-500.0,0.00013603,2]
[347153919,1735528238364,-500.0,0.00013603,2]
[347153921,1735528238373,-500.0,0.00013603,2]
[347153923,1735528238383,-500.0,0.00013603,2]
[347153925,1735528238393,-559.36,0.00013603,2]
[347153927,1735528238402,-500.0,0.00013603,2]
[347153929,1735528238411,-272.09653061,0.00013604,2]
[347153931,1735528238420,-500.0,0.00013604,2]
[347153933,1735528238430,-500.0,0.00013604,2]
[347153935,1735528238439,-500.0,0.00013604,2]
[347153937,1735528238448,-369.80330397,0.00013604,2]
[347153939,1735528238457,-500.0,0.00013604,2]
[347153941,1735528238466,-500.0,0.00013604,2]
[347153943,1735528238474,-500.0,0.00013604,2]
[347153945,1735528238483,-500.0,0.00013604,2]
[347153946,1735528238492,-500.0,0.00013604,2]
[347153948,1735528238501,-500.0,0.00013604,2]
[347153950,1735528238510,-500.0,0.00013604,2]
[347153952,1735528238519,-500.0,0.00013604,2]
[347153954,1735528238529,-500.0,0.00013604,2]
[347153956,1735528238538,-500.0,0.00013604,2]
[347153958,1735528238547,-500.0,0.00013604,2]
[347153960,1735528238556,-500.0,0.00013604,2]
[347153962,1735528238565,-500.0,0.00013604,2]
[347153963,1735528238574,-500.0,0.00013604,2]
[347153964,1735528238583,-392.96956469,0.00013604,2]
[347153965,1735528238591,-500.0,0.00013604,2]
[347153966,1735528238600,-500.0,0.00013604,2]
[347153967,1735528238609,-500.0,0.00013604,2]
[347153968,1735528238618,-500.0,0.00013604,2]
[347153969,1735528238627,-500.0,0.00013604,2]
[347153970,1735528238637,-500.0,0.00013604,2]
[347153971,1735528238646,-500.0,0.00013604,2]
[347153972,1735528238655,-500.0,0.00013604,2]
[347153973,1735528238664,-500.0,0.00013604,2]
[347153975,1735528238673,-500.0,0.00013604,2]
[347153976,1735528238685,-500.0,0.00013604,2]
[347153978,1735528238695,-500.0,0.00013604,2]
[347153980,1735528238704,-500.0,0.00013604,2]
[347153982,1735528238713,-500.0,0.00013604,2]
[347153984,1735528238722,-500.0,0.00013604,2]
[347153986,1735528238732,-267.07507384,0.00013604,2]
[347153988,1735528238741,-500.0,0.00013604,2]
[347153990,1735528238751,-500.0,0.00013605,2]
[347153992,1735528238762,-500.0,0.00013605,2]
[347153994,1735528238772,-500.0,0.00013605,2]
[347153996,1735528238781,-500.0,0.00013605,2]
[347153998,1735528238790,-500.0,0.00013605,2]
[347153999,1735528238799,-500.0,0.00013605,2]
[347154000,1735528238808,-503.82213535,0.00013605,2]
[347154001,1735528238818,-500.0,0.00013605,2]
[347154002,1735528238828,-500.0,0.00013605,2]
[347154003,1735528238837,-500.0,0.00013605,2]
[347154005,1735528238846,-407.25985332,0.00013605,2]
[347154006,1735528238856,-500.0,0.00013605,2]
[347154007,1735528238865,-500.0,0.00013605,2]
[347154008,1735528238875,-500.0,0.00013605,2]
[347154009,1735528238890,-500.0,0.00013605,2]
[347154011,1735528238900,-500.0,0.00013605,2]
[347154012,1735528238909,-500.0,0.00013605,2]
[347154013,1735528238918,-500.0,0.00013605,2]
[347154014,1735528238928,-500.0,0.00013605,2]
[347154015,1735528238938,-500.0,0.00013605,2]
[347154016,1735528238947,-500.0,0.00013605,2]
[347154017,1735528238957,-500.0,0.00013605,2]
[347154018,1735528238966,-500.0,0.00013605,2]
[347154020,1735528238975,-500.0,0.00013605,2]
[347154021,1735528238984,-193.78640895,0.00013605,2]
[347154022,1735528238993,-339.88589509,0.00013605,2]
[347154023,1735528239003,-810.26102451,0.00013606,2]
[347154024,1735528239013,-211.44879001,0.00013606,2]
[347154025,1735528239022,-500.0,0.00013606,2]
[347154026,1735528239031,-500.0,0.00013606,2]
[347154027,1735528239040,-500.0,0.00013606,2]
[347154028,1735528239049,-500.0,0.00013606,2]
[347154029,1735528239058,-500.0,0.00013606,2]
[347154030,1735528239068,-329.94813295,0.00013606,2]
[347154031,1735528239077,-519.65,0.00013606,2]
[347154032,1735528239086,-500.0,0.00013606,2]
[347154033,1735528239095,-500.0,0.00013606,2]
[347154034,1735528239104,-500.0,0.00013606,2]
[347154035,1735528239114,-499.95930663,0.00013606,2]
[347154036,1735528239123,-439.76349531,0.00013606,2]
[347154037,1735528239133,-500.0,0.00013606,2]
[347154038,1735528239142,-419.63580589,0.00013606,2]
[347154039,1735528239151,-432.34948754,0.00013606,2]
[347154040,1735528239160,-500.0,0.00013606,2]
[347154041,1735528239169,-500.56147081,0.00013606,2]
[347154042,1735528239179,-494.77916373,0.00013606,2]
[347154043,1735528239188,-500.0,0.00013606,2]
[347154044,1735528239197,-500.0,0.00013606,2]
[347154045,1735528239206,-500.0,0.00013606,2]
[347154046,1735528239215,-463.12,0.00013606,2]
[347154047,1735528239224,-523.27036684,0.00013606,2]
[347154048,1735528239234,-500.0,0.00013606,2]
[347154049,1735528239243,-500.0,0.00013606,2]
[347154050,1735528239252,-505.57696683,0.00013606,2]
[347154051,1735528239261,-500.0,0.00013606,2]
[347154052,1735528239270,-500.0,0.00013606,2]
[347154053,1735528239279,-500.0,0.00013606,2]
[347154054,1735528239288,-500.0,0.00013606,2]
[347154055,1735528239297,-500.0,0.00013606,2]
[347154056,1735528239306,-500.0,0.00013606,2]
[347154057,1735528239315,-500.0,0.00013606,2]
[347154058,1735528239325,-500.0,0.00013606,2]
[347154059,1735528239334,-500.0,0.00013606,2]
[347154060,1735528239344,-500.0,0.00013606,2]
[347154061,1735528239353,-500.0,0.00013606,2]
[347154062,1735528239362,-500.0,0.00013606,2]
[347154063,1735528239372,-500.0,0.00013606,2]
[347154064,1735528239381,-500.0,0.00013606,2]
[347154065,1735528239390,-500.0,0.00013606,2]
[347154066,1735528239400,-503.05718836,0.00013606,2]
[347154067,1735528239409,-500.0,0.00013606,2]
[347154068,1735528239419,-502.26945066,0.00013606,2]
[347154069,1735528239429,-500.0,0.00013606,2]
[347154070,1735528239438,-163.20815311,0.00013606,2]
[347154071,1735528239447,-503.29966013,0.00013606,2]
[347154072,1735528239457,-500.0,0.00013606,2]
[347154073,1735528239466,-500.0,0.00013606,2]
[347154074,1735528239476,-504.12543732,0.00013606,2]
[347154075,1735528239485,-505.2219457,0.00013606,2]
[347154076,1735528239494,-500.0,0.00013606,2]
[347154077,1735528239503,-500.0,0.00013606,2]
[347154078,1735528239512,-500.0,0.00013606,2]
[347154079,1735528239522,-212.92412109,0.00013606,2]
[347154080,1735528239532,-500.0,0.00013606,2]
[347154081,1735528239541,-500.0,0.00013606,2]
[347154082,1735528239550,-500.4806111,0.00013606,2]
[347154083,1735528239560,-500.0,0.00013606,2]
[347154084,1735528239570,-505.03834613,0.00013606,2]
[347154085,1735528239579,-502.71337243,0.00013606,2]
[347154086,1735528239589,-501.52389376,0.00013606,2]
[347154087,1735528239598,-351.93403826,0.00013606,2]
[347154088,1735528239608,-501.57866195,0.00013606,2]
[347154089,1735528239618,-500.0,0.00013606,2]
[347154090,1735528239627,-500.0,0.00013606,2]
[347154091,1735528239637,-510.70107775,0.00013606,2]
[347154092,1735528239647,-500.89199582,0.00013606,2]
[347154093,1735528239656,-500.76329462,0.00013606,2]
[347154094,1735528239666,-500.0,0.00013606,2]
[347154095,1735528239679,-503.56816183,0.00013606,2]
[347154096,1735528239689,-500.28585868,0.00013606,2]
[347154097,1735528239699,-514.1987271,0.00013606,2]
[347154098,1735528239708,-503.01232938,0.00013606,2]
[347154099,1735528239719,-500.0,0.00013606,2]
[347154100,1735528239727,-500.0,0.00013606,2]
[347154101,1735528239737,-500.0,0.00013606,2]
[347154102,1735528239746,-500.93261074,0.00013606,2]
[347154103,1735528239757,-502.21453217,0.00013606,2]
[347154104,1735528239766,-500.0,0.00013606,2]
[347154105,1735528239776,-502.3046818,0.00013606,2]
[347154106,1735528239785,-500.0,0.00013606,2]
[347154107,1735528239794,-502.59651371,0.00013606,2]
[347154108,1735528239804,-500.96472988,0.00013606,2]
[347154110,1735528239815,-500.0,0.00013606,2]
[347154112,1735528239824,-500.88363067,0.00013606,2]
[347154113,1735528239834,-481.3314848,0.00013606,2]
[347154115,1735528239843,-502.79072863,0.00013606,2]
[347154117,1735528239853,-500.58399068,0.00013606,2]
[347154118,1735528239863,-502.43445976,0.00013606,2]
[347154119,1735528239872,-293.31419349,0.00013606,2]
[347154120,1735528239882,-501.10591425,0.00013606,2]
[347154121,1735528239891,-500.0,0.00013606,2]
[347154122,1735528239900,-500.0,0.00013606,2]
[347154123,1735528239910,-500.41977402,0.00013606,2]
[347154124,1735528239919,-500.0,0.00013606,2]
[347154125,1735528239928,-501.49359118,0.00013606,2]
[347154126,1735528239937,-500.0,0.00013606,2]
[347154127,1735528239947,-500.0,0.00013606,2]
[347154128,1735528239957,-500.0,0.00013606,2]
[347154129,1735528239966,-500.80764387,0.00013606,2]
[347154130,1735528239976,-500.0,0.00013606,2]
[347154131,1735528239985,-502.29225746,0.00013606,2]
[347154132,1735528240067,-500.0,0.00013606,2]
[347154134,1735528240077,-500.0,0.00013606,2]
[347154136,1735528240087,-4385.26,0.00013606,2]
[347154137,1735528240095,-500.856505,0.00013606,2]
[347154138,1735528240105,-500.0,0.00013606,2]
[347154139,1735528240114,-500.0,0.00013606,2]
[347154140,1735528240123,-500.0,0.00013606,2]
[347154141,1735528240132,-500.0,0.00013606,2]
[347154142,1735528240141,-500.37182015,0.00013606,2]
[347154143,1735528240151,-500.0,0.00013606,2]
[347154144,1735528240160,-501.3664334,0.00013606,2]
[347154145,1735528240170,-542.24,0.00013606,2]
[347154146,1735528240179,-500.0,0.00013606,2]
[347154147,1735528240188,-500.0,0.00013606,2]
[347154148,1735528240197,-500.0,0.00013606,2]
[347154149,1735528240206,-500.0,0.00013606,2]
[347154150,1735528240216,-507.99184948,0.00013606,2]
[347154151,1735528240225,-500.0,0.00013606,2]
[347154152,1735528240234,-500.0,0.00013606,2]
[347154153,1735528240244,-500.81095399,0.00013606,2]
[347154154,1735528240253,-500.0,0.00013606,2]
[347154155,1735528240262,-501.86101984,0.00013606,2]
[347154156,1735528240272,-500.0,0.00013606,2]
[347154157,1735528240281,-500.0,0.00013606,2]
[347154158,1735528240291,-501.32953185,0.00013606,2]
[347154159,1735528240300,-500.0,0.00013606,2]
[347154160,1735528240310,-502.71751867,0.00013606,2]
[347154161,1735528240320,-500.0,0.00013606,2]
[347154162,1735528240330,-502.51240342,0.00013606,2]
[347154163,1735528240339,-500.0,0.00013606,2]
[347154164,1735528240348,-500.0,0.00013606,2]
[347154165,1735528240358,-502.40140398,0.00013606,2]
[347154166,1735528240367,-503.65426692,0.00013606,2]
[347154167,1735528240376,-500.0,0.00013606,2]
[347154168,1735528240385,-501.61139106,0.00013606,2]
[347154169,1735528240395,-502.47609684,0.00013606,2]
[347154170,1735528240404,-500.0,0.00013606,2]
[347154171,1735528240413,-501.69511817,0.00013606,2]
[347154172,1735528240422,-509.62949061,0.00013606,2]
[347154173,1735528240431,-500.0,0.00013606,2]
[347154174,1735528240440,-500.0,0.00013606,2]
[347154175,1735528240449,-500.0,0.00013606,2]
[347154176,1735528240458,-533.03776449,0.00013606,2]
[347154177,1735528240467,-500.0,0.00013606,2]
[347154178,1735528240476,-524.58,0.00013606,2]
[347154179,1735528240486,-500.0,0.00013606,2]
[347154180,1735528240495,-503.35946388,0.00013606,2]
[347154181,1735528240504,-500.0,0.00013606,2]
[347154182,1735528240514,-160.42844558,0.00013606,2]
[347154183,1735528240523,-500.66595149,0.00013606,2]
[347154184,1735528240532,-500.0,0.00013606,2]
[347154185,1735528240541,-506.12756993,0.00013606,2]
[347154186,1735528240551,-500.0,0.00013606,2]
[347154187,1735528240559,-500.0,0.00013606,2]
[347154188,1735528240569,-518.37829433,0.00013607,2]
[347154189,1735528240578,-500.0,0.00013607,2]
[347154190,1735528240587,-500.0,0.00013607,2]
[347154191,1735528240597,-729.0913185,0.00013649,2]
[347154192,1735528240606,-399.358868,0.00013699,2]
[347154193,1735528240615,-1141.33856,0.00013804,2]
[347154194,1735528240624,-500.0,0.00013877,2]
[347154195,1735528240634,-500.0,0.00013877,2]
[347154196,1735528240643,-500.0,0.00013877,2]
[347154197,1735528240652,-500.0,0.00013877,2]
[347154198,1735528240661,-500.0,0.00013877,2]
[347154199,1735528240671,-500.0,0.00013877,2]
[347154200,1735528240686,-500.0,0.00013877,2]
[347154201,1735528240695,-500.0,0.00013877,2]
[347154202,1735528240705,-500.0,0.00013877,2]
[347154203,1735528240714,-559.36,0.00013877,2]
[347154204,1735528240725,-500.0,0.00013877,2]
[347154205,1735528240734,-500.0,0.00013878,2]
[347154206,1735528240743,-500.0,0.00013879,2]
[347154207,1735528240754,-500.0,0.00013879,2]
[347154208,1735528240764,-500.0,0.00013879,2]
[347154209,1735528240774,-500.0,0.00013879,2]
[347154210,1735528240783,-301.3390152,0.00013879,2]
[347154211,1735528240792,-500.0,0.00013879,2]
[347154212,1735528240804,-500.0,0.00013879,2]
[347154213,1735528240813,-500.0,0.00013879,2]
[347154214,1735528240824,-500.0,0.00013879,2]
[347154215,1735528240835,-500.0,0.00013879,2]
[347154216,1735528240844,-500.0,0.00013879,2]
[347154217,1735528240853,-500.0,0.00013879,2]
[347154218,1735528240862,-500.0,0.00013879,2]
[347154219,1735528240871,-500.0,0.00013879,2]
[347154220,1735528240881,-500.0,0.00013879,2]
[347154221,1735528240890,-500.0,0.00013879,2]
[347154222,1735528240900,-500.0,0.00013879,2]
[347154223,1735528240909,-500.0,0.00013879,2]
[347154224,1735528240918,-500.0,0.00013879,2]
[347154225,1735528240928,-500.0,0.00013879,2]
[347154226,1735528240938,-500.0,0.00013879,2]
[347154227,1735528240947,-500.0,0.00013879,2]
[347154228,1735528240956,-534.8,0.0001388,2]
[347154229,1735528240965,-500.0,0.0001388,2]
[347154230,1735528240974,-576.82425184,0.0001388,2]
[347154231,1735528240983,-566.92,0.0001388,2]
[347154232,1735528240991,-500.0,0.0001388,2]
[347154233,1735528241000,-500.0,0.0001388,2]
[347154234,1735528241009,-500.0,0.0001388,2]
[347154235,1735528241019,-500.0,0.0001388,2]
[347154236,1735528241028,-500.0,0.0001388,2]
[347154237,1735528241038,-500.0,0.0001388,2]
[347154238,1735528241047,-500.0,0.0001388,2]
[347154239,1735528241056,-500.0,0.0001388,2]
[347154240,1735528241065,-500.0,0.0001388,2]
[347154241,1735528241074,-500.0,0.0001388,2]
[347154242,1735528241083,-500.0,0.0001388,2]
[347154243,1735528241092,-500.0,0.0001388,2]
[347154244,1735528241102,-500.0,0.0001388,2]
[347154245,1735528241111,-500.0,0.0001388,2]
[347154246,1735528241121,-500.0,0.0001388,2]
[347154247,1735528241131,-500.0,0.0001388,2]
[347154248,1735528241140,-500.0,0.0001388,2]
[347154249,1735528241149,-500.0,0.0001388,2]
[347154250,1735528241158,-500.0,0.0001388,2]
[347154251,1735528241167,-500.0,0.0001388,2]
[347154252,1735528241177,-500.0,0.0001388,2]
[347154253,1735528241186,-503.15622946,0.0001388,2]
[347154254,1735528241195,-500.0,0.0001388,2]
[347154255,1735528241204,-500.0,0.0001388,2]
[347154256,1735528241214,-500.0,0.0001388,2]
[347154257,1735528241224,-502.03615281,0.0001388,2]
[347154258,1735528241233,-501.86913518,0.0001388,2]
[347154259,1735528241242,-502.06750967,0.0001388,2]
[347154260,1735528241251,-500.0,0.0001388,2]
[347154261,1735528241260,-500.0,0.0001388,2]
[347154262,1735528241270,-500.0,0.0001388,2]
[347154263,1735528241279,-500.0,0.0001388,2]
[347154264,1735528241288,-500.0,0.0001388,2]
[347154265,1735528241298,-603.80364558,0.0001388,2]
[347154266,1735528241307,-500.0,0.0001388,2]
[347154267,1735528241317,-500.0,0.0001388,2]
[347154268,1735528241327,-500.0,0.0001388,2]
[347154269,1735528241337,-504.0658614,0.0001388,2]
[347154270,1735528241346,-500.0,0.0001388,2]
[347154271,1735528241355,-500.0,0.0001388,2]
[347154272,1735528241365,-500.0,0.0001388,2]
[347154273,1735528241374,-513.14700694,0.0001388,2]
[347154274,1735528241383,-500.0,0.0001388,2]
[347154275,1735528241393,-507.65262725,0.0001388,2]
[347154276,1735528241402,-500.0,0.0001388,2]
[347154277,1735528241413,-502.21554516,0.0001388,2]
[347154278,1735528241423,-500.0,0.0001388,2]
[347154279,1735528241432,-4385.26,0.0001388,2]
[347154280,1735528241441,-500.0,0.0001388,2]
[347154281,1735528241450,-500.0,0.0001388,2]
[347154282,1735528241459,-572.24244462,0.0001388,2]
[347154283,1735528241468,-500.0,0.0001388,2]
[347154284,1735528241477,-500.0,0.0001388,2]
[347154285,1735528241486,-500.0,0.0001388,2]
[347154286,1735528241495,-500.0,0.0001388,2]
[347154287,1735528241504,-500.0,0.0001388,2]
[347154288,1735528241513,-500.0,0.0001388,2]
[347154289,1735528241522,-516.93274101,0.0001388,2]
[347154290,1735528241531,-506.5008476,0.0001388,2]
[347154291,1735528241541,-500.0,0.0001388,2]
[347154292,1735528241551,-501.55798455,0.0001388,2]
[347154293,1735528241560,-500.0,0.0001388,2]
[347154294,1735528241571,-525.93,0.0001388,2]
[347154295,1735528241580,-500.0,0.0001388,2]
[347154296,1735528241589,-502.13754334,0.0001388,2]
[347154297,1735528241599,-509.63043948,0.0001388,2]
[347154298,1735528241608,-500.0,0.0001388,2]
[347154299,1735528241618,-500.0,0.0001388,2]
[347154300,1735528241628,-500.0,0.0001388,2]
[347154301,1735528241638,-553.11361311,0.0001388,2]
[347154302,1735528241648,-500.0,0.0001388,2]
[347154303,1735528241657,-505.64768577,0.0001388,2]
[347154304,1735528241666,-506.30556771,0.0001388,2]
[347154305,1735528241676,-400.0,0.00013973,2]
[347154306,1735528241688,-500.0,0.00014151,2]
[347154307,1735528241697,-500.0,0.00014151,2]
[347154308,1735528241706,-500.0,0.00014151,2]
[347154309,1735528241715,-500.0,0.00014151,2]
[347154310,1735528241726,-500.0,0.00014151,2]
[347154311,1735528241735,-500.0,0.00014151,2]
[347154312,1735528241745,-189.02295148,0.00014151,2]
[347154313,1735528241757,-500.0,0.00014151,2]
[347154314,1735528241766,-559.36,0.00014151,2]
[347154315,1735528241776,-500.0,0.00014151,2]
[347154316,1735528241786,-201.2,0.00014152,2]
[347154317,1735528241796,-500.0,0.00014153,2]
[347154318,1735528241874,-500.0,0.00014153,2]
[347154319,1735528241885,-500.0,0.00014153,2]
[347154320,1735528241894,-500.0,0.00014153,2]
[347154321,1735528241904,-500.0,0.00014153,2]
[347154322,1735528241914,-500.0,0.00014153,2]
[347154323,1735528241923,-500.0,0.00014153,2]
[347154324,1735528241934,-500.0,0.00014153,2]
[347154325,1735528241943,-500.0,0.00014153,2]
[347154326,1735528241953,-500.0,0.00014153,2]
[347154327,1735528241963,-500.0,0.00014153,2]
[347154328,1735528241972,-500.0,0.00014153,2]
[347154329,1735528241983,-387.70853491,0.00014153,2]
[347154330,1735528241993,-500.0,0.00014153,2]
[347154331,1735528242003,-500.0,0.00014153,2]
[347154332,1735528242014,-500.0,0.00014153,2]
[347154333,1735528242023,-500.0,0.00014153,2]
[347154334,1735528242032,-500.0,0.00014153,2]
[347154335,1735528242041,-500.0,0.00014153,2]
[347154336,1735528242051,-500.0,0.00014153,2]
[347154337,1735528242060,-500.0,0.00014153,2]
[347154338,1735528242070,-500.0,0.00014154,2]
[347154339,1735528242079,-500.0,0.00014154,2]
[347154340,1735528242089,-500.0,0.00014154,2]
[347154341,1735528242097,-500.0,0.00014154,2]
[347154342,1735528242107,-500.0,0.00014154,2]
[347154343,1735528242116,-500.0,0.00014154,2]
[347154344,1735528242125,-500.0,0.00014154,2]
[347154345,1735528242135,-500.0,0.00014154,2]
[347154346,1735528242144,-198.98567018,0.00014154,2]
[347154347,1735528242153,-500.0,0.00014154,2]
[347154348,1735528242162,-500.0,0.00014154,2]
[347154349,1735528242172,-500.0,0.00014154,2]
[347154350,1735528242181,-500.0,0.00014154,2]
[347154351,1735528242191,-623.79130358,0.00014154,2]
[347154352,1735528242200,-500.0,0.00014154,2]
[347154353,1735528242209,-500.0,0.00014154,2]
[347154354,1735528242218,-500.0,0.00014154,2]
[347154355,1735528242228,-500.0,0.00014154,2]
[347154356,1735528242237,-500.0,0.00014154,2]
[347154357,1735528242247,-500.0,0.00014154,2]
[347154358,1735528242256,-500.0,0.00014154,2]
[347154359,1735528242265,-500.0,0.00014154,2]
[347154360,1735528242275,-500.0,0.00014154,2]
[347154361,1735528242284,-500.0,0.00014154,2]
[347154362,1735528242293,-500.0,0.00014154,2]
[347154363,1735528242302,-500.0,0.00014154,2]
[347154364,1735528242311,-463.72248636,0.00014154,2]
[347154365,1735528242322,-500.0,0.00014154,2]
[347154366,1735528242332,-500.0,0.00014154,2]
[347154367,1735528242341,-500.0,0.00014154,2]
[347154368,1735528242349,-500.0,0.00014154,2]
[347154369,1735528242359,-503.62499704,0.00014154,2]
[347154370,1735528242368,-500.0,0.00014154,2]
[347154371,1735528242377,-500.0,0.00014154,2]
[347154372,1735528242387,-500.0,0.00014154,2]
[347154373,1735528242396,-501.24146998,0.00014154,2]
[347154374,1735528242405,-4385.26,0.00014154,2]
[347154375,1735528242414,-511.58260354,0.00014154,2]
[347154376,1735528242423,-500.0,0.00014154,2]
[347154377,1735528242432,-501.86966056,0.00014154,2]
[347154378,1735528242442,-500.0,0.00014154,2]
[347154379,1735528242451,-512.02178123,0.00014154,2]
[347154380,1735528242460,-500.0,0.00014154,2]
[347154381,1735528242470,-500.0,0.00014154,2]
[347154382,1735528242479,-500.0,0.00014154,2]
[347154383,1735528242488,-503.29787021,0.00014154,2]
[347154384,1735528242498,-500.0,0.00014154,2]
[347154385,1735528242506,-503.65258315,0.00014154,2]
[347154386,1735528242516,-500.0,0.00014154,2]
[347154387,1735528242525,-500.0,0.00014154,2]
[347154388,1735528242535,-500.0,0.00014154,2]
[347154389,1735528242544,-168.66219586,0.00014328,2]
[347154390,1735528242553,-500.0,0.00014425,2]
[347154391,1735528242562,-500.0,0.00014425,2]
[347154392,1735528242573,-500.0,0.00014425,2]